[Event "Titled Tuesday Blitz May 31 Early 2022"]
[White "Buscar, Michael"]
[Black "Potapova, Margarita"]
[WhiteFideId "2603616"]
[BlackFideId "14126869"]
[WhiteElo "2010"]
[BlackElo "2216"]
[Result "0-1"]
[Round "10"]
[TimeControl "180+1"]
[Date "2022.06.01"]
[WhiteClock "0:00:04"]
[BlackClock "0:00:12"]

1. d4 {[%clk 0:02:56]}  d5 {[%clk 0:02:59]} 2. c4 {[%clk 0:02:56]}  e6 {[%clk 0:02:58]} 3. Nf3 {[%clk 0:02:47]}  dxc4 {[%clk 0:02:51]} 4. g3 {[%clk 0:02:44]}  Nf6 {[%clk 0:02:49]} 5. Bg2 {[%clk 0:02:44]}  Bb4+ {[%clk 0:02:44]} 6. Nbd2 {[%clk 0:02:42]}  O-O {[%clk 0:02:43]} 7. O-O {[%clk 0:02:42]}  b5 {[%clk 0:02:39]} 8. Ne5 {[%clk 0:02:40]}  Nd5 {[%clk 0:02:39]} 9. a4 {[%clk 0:02:25]}  c6 {[%clk 0:02:39]} 10. e4 {[%clk 0:02:21]}  Ne7 {[%clk 0:02:37]} 11. Ndf3 {[%clk 0:02:08]}  Bb7 {[%clk 0:02:34]} 12. Qc2 {[%clk 0:02:01]}  Nd7 {[%clk 0:02:31]} 13. Rd1 {[%clk 0:02:00]}  a5 {[%clk 0:02:30]} 14. Be3 {[%clk 0:01:50]}  Nb6 {[%clk 0:02:29]} 15. d5 {[%clk 0:01:39]}  exd5 {[%clk 0:02:27]} 16. Bxb6 {[%clk 0:01:39]}  Qxb6 {[%clk 0:02:26]} 17. Nd7 {[%clk 0:01:39]}  Qc7 {[%clk 0:02:23]} 18. Nxf8 {[%clk 0:01:38]}  Rxf8 {[%clk 0:02:24]} 19. axb5 {[%clk 0:01:35]}  cxb5 {[%clk 0:02:18]} 20. Nd4 {[%clk 0:01:32]}  Qc5 {[%clk 0:02:01]} 21. Qe2 {[%clk 0:01:15]}  c3 {[%clk 0:01:26]} 22. Nb3 {[%clk 0:00:53]}  Qc4 {[%clk 0:01:23]} 23. Qxc4 {[%clk 0:00:44]}  bxc4 {[%clk 0:01:22]} 24. bxc3 {[%clk 0:00:39]}  Bxc3 {[%clk 0:01:22]} 25. Nxa5 {[%clk 0:00:30]}  Bxa1 {[%clk 0:01:21]} 26. Nxb7 {[%clk 0:00:31]}  Bb2 {[%clk 0:01:18]} 27. exd5 {[%clk 0:00:27]}  c3 {[%clk 0:01:18]} 28. Be4 {[%clk 0:00:28]}  f5 {[%clk 0:01:14]} 29. Bc2 {[%clk 0:00:24]}  Rb8 {[%clk 0:01:12]} 30. d6 {[%clk 0:00:20]}  Rxb7 {[%clk 0:01:12]} 31. d7 {[%clk 0:00:21]}  Nc6 {[%clk 0:01:12]} 32. d8=Q+ {[%clk 0:00:18]}  Nxd8 {[%clk 0:01:12]} 33. Rxd8+ {[%clk 0:00:18]}  Kf7 {[%clk 0:01:12]} 34. Bxf5 {[%clk 0:00:18]}  g6 {[%clk 0:01:07]} 35. Bc2 {[%clk 0:00:17]}  Ke7 {[%clk 0:01:03]} 36. Rd3 {[%clk 0:00:16]}  Ra7 {[%clk 0:01:02]} 37. Re3+ {[%clk 0:00:15]}  Kd6 {[%clk 0:01:02]} 38. Kg2 {[%clk 0:00:15]}  Ra1 {[%clk 0:01:02]} 39. Re2 {[%clk 0:00:14]}  Kd5 {[%clk 0:01:02]} 40. Kf3 {[%clk 0:00:14]}  Kd4 {[%clk 0:01:02]} 41. Re4+ {[%clk 0:00:14]}  Kd5 {[%clk 0:01:02]} 42. Re2 {[%clk 0:00:14]}  Rc1 {[%clk 0:01:02]} 43. h4 {[%clk 0:00:14]}  Kd4 {[%clk 0:01:01]} 44. h5 {[%clk 0:00:14]}  Rxc2 {[%clk 0:00:43]} 45. Rxc2 {[%clk 0:00:15]}  Kd3 {[%clk 0:00:43]} 46. hxg6 {[%clk 0:00:14]}  hxg6 {[%clk 0:00:38]} 47. Rxc3+ {[%clk 0:00:09]}  Bxc3 {[%clk 0:00:37]} 48. Kg4 {[%clk 0:00:09]}  Bf6 {[%clk 0:00:37]} 49. Kf4 {[%clk 0:00:06]}  Kd4 {[%clk 0:00:36]} 50. g4 {[%clk 0:00:04]}  Kd5 {[%clk 0:00:36]} 51. f3 {[%clk 0:00:01]}  Ke6 {[%clk 0:00:36]} 52. Ke4 {[%clk 0:00:01]}  Kf7 {[%clk 0:00:30]} 53. f4 {[%clk 0:00:02]}  Bd8 {[%clk 0:00:27]} 54. Ke5 {[%clk 0:00:01]}  Bc7+ {[%clk 0:00:27]} 55. Ke4 {[%clk 0:00:02]}  Bb8 {[%clk 0:00:26]} 56. Kf3 {[%clk 0:00:02]}  Ke7 {[%clk 0:00:23]} 57. Ke4 {[%clk 0:00:03]}  Bc7 {[%clk 0:00:22]} 58. Ke3 {[%clk 0:00:02]}  Ba5 {[%clk 0:00:21]} 59. Ke4 {[%clk 0:00:03]}  Kf7 {[%clk 0:00:20]} 60. Ke5 {[%clk 0:00:04]}  Bd2 {[%clk 0:00:20]} 61. g5 {[%clk 0:00:03]}  Bc3+ {[%clk 0:00:18]} 62. Kd5 {[%clk 0:00:04]}  Ke7 {[%clk 0:00:12]} 0-1


[Site "https://www.chess.com"]

[Event "Titled Tuesday Blitz May 31 Early 2022"]
[White "Chigaev, Maksim"]
[Black "Barp, Alberto"]
[WhiteFideId "4108116"]
[BlackFideId "872555"]
[WhiteElo "2457"]
[BlackElo "2229"]
[Result "0-1"]
[Round "10"]
[TimeControl "180+1"]
[Date "2022.05.31"]
[WhiteClock "0:00:47"]
[BlackClock "0:00:40"]

1. g3 {[%clk 0:03:00]}  d5 {[%clk 0:02:56]} 2. Bg2 {[%clk 0:02:54]}  e5 {[%clk 0:02:53]} 3. d3 {[%clk 0:02:49]}  c6 {[%clk 0:02:53]} 4. Nd2 {[%clk 0:02:48]}  Nf6 {[%clk 0:02:52]} 5. h3 {[%clk 0:02:48]}  Bc5 {[%clk 0:02:50]} 6. e3 {[%clk 0:02:48]}  O-O {[%clk 0:02:50]} 7. a3 {[%clk 0:02:48]}  Re8 {[%clk 0:02:50]} 8. b3 {[%clk 0:02:46]}  Nbd7 {[%clk 0:02:50]} 9. Bb2 {[%clk 0:02:47]}  Nf8 {[%clk 0:02:50]} 10. Ne2 {[%clk 0:02:47]}  Ng6 {[%clk 0:02:51]} 11. Qb1 {[%clk 0:02:47]}  a5 {[%clk 0:02:50]} 12. Qa2 {[%clk 0:02:47]}  b5 {[%clk 0:02:46]} 13. O-O-O {[%clk 0:02:45]}  a4 {[%clk 0:02:41]} 14. b4 {[%clk 0:02:44]}  Bf8 {[%clk 0:02:41]} 15. Qa1 {[%clk 0:02:44]}  c5 {[%clk 0:02:40]} 16. bxc5 {[%clk 0:02:44]}  Bxc5 {[%clk 0:02:41]} 17. d4 {[%clk 0:02:40]}  exd4 {[%clk 0:02:40]} 18. Nxd4 {[%clk 0:02:41]}  Bd7 {[%clk 0:02:40]} 19. c3 {[%clk 0:02:35]}  Ne5 {[%clk 0:02:38]} 20. Nc2 {[%clk 0:02:35]}  Nd3+ {[%clk 0:02:37]} 21. Kb1 {[%clk 0:02:35]}  Nxf2 {[%clk 0:02:38]} 22. Rdf1 {[%clk 0:02:33]}  Nxh1 {[%clk 0:02:36]} 23. Bxh1 {[%clk 0:02:34]}  Bxh3 {[%clk 0:02:33]} 24. Rf4 {[%clk 0:02:34]}  Bd6 {[%clk 0:02:32]} 25. Rf2 {[%clk 0:02:29]}  Ng4 {[%clk 0:02:27]} 26. Re2 {[%clk 0:02:21]}  Ne5 {[%clk 0:02:22]} 27. Bxd5 {[%clk 0:02:20]}  Rc8 {[%clk 0:02:19]} 28. e4 {[%clk 0:02:16]}  Bg4 {[%clk 0:02:16]} 29. Rf2 {[%clk 0:02:11]}  Bc5 {[%clk 0:02:16]} 30. Rf4 {[%clk 0:02:09]}  Be2 {[%clk 0:02:10]} 31. Nb4 {[%clk 0:01:57]}  Be3 {[%clk 0:02:03]} 32. c4 {[%clk 0:01:45]}  Bxf4 {[%clk 0:01:55]} 33. gxf4 {[%clk 0:01:46]}  Nd3 {[%clk 0:01:21]} 34. Bxg7 {[%clk 0:01:42]}  Qh4 {[%clk 0:01:19]} 35. Nxd3 {[%clk 0:01:13]}  Bxd3+ {[%clk 0:01:19]} 36. Ka2 {[%clk 0:01:14]}  Qf2 {[%clk 0:01:10]} 37. Qb2 {[%clk 0:01:14]}  Bxc4+ {[%clk 0:01:01]} 38. Bxc4 {[%clk 0:01:11]}  bxc4 {[%clk 0:00:57]} 39. Bc3 {[%clk 0:01:04]}  Red8 {[%clk 0:00:53]} 40. Ka1 {[%clk 0:00:46]}  Rxd2 {[%clk 0:00:42]} 41. Qxd2 {[%clk 0:00:45]}  Qxd2 {[%clk 0:00:42]} 42. Bxd2 {[%clk 0:00:46]}  Rd8 {[%clk 0:00:39]} 43. Bb4 {[%clk 0:00:46]}  Rd3 {[%clk 0:00:40]} 44. Kb2 {[%clk 0:00:46]}  h5 {[%clk 0:00:40]} 45. Kc2 {[%clk 0:00:47]}  h4 {[%clk 0:00:40]} 0-1


[Site "https://www.chess.com"]

[Event "Titled Tuesday Blitz May 31 Early 2022"]
[White "Demchenko, Anton"]
[Black "Urazayev, Arystanbek"]
[WhiteFideId "4160258"]
[BlackFideId "13709810"]
[WhiteElo "2539"]
[BlackElo "2422"]
[Result "1-0"]
[Round "10"]
[TimeControl "180+1"]
[Date "2022.05.31"]
[WhiteClock "0:00:05"]
[BlackClock "0:00:03"]

1. e4 {[%clk 0:03:00]}  e5 {[%clk 0:03:00]} 2. Nf3 {[%clk 0:03:00]}  Nc6 {[%clk 0:03:00]} 3. Bc4 {[%clk 0:03:01]}  Bc5 {[%clk 0:03:00]} 4. d3 {[%clk 0:03:01]}  Nf6 {[%clk 0:03:01]} 5. Bg5 {[%clk 0:03:02]}  h6 {[%clk 0:03:01]} 6. Bh4 {[%clk 0:03:02]}  Be7 {[%clk 0:03:00]} 7. Bg3 {[%clk 0:03:02]}  d6 {[%clk 0:03:00]} 8. a4 {[%clk 0:03:03]}  a5 {[%clk 0:02:59]} 9. h3 {[%clk 0:03:01]}  O-O {[%clk 0:02:58]} 10. Nc3 {[%clk 0:02:56]}  Be6 {[%clk 0:02:58]} 11. Bxe6 {[%clk 0:02:54]}  fxe6 {[%clk 0:02:59]} 12. Ne2 {[%clk 0:02:55]}  Nh5 {[%clk 0:02:58]} 13. O-O {[%clk 0:02:55]}  Qe8 {[%clk 0:02:58]} 14. c3 {[%clk 0:02:41]}  Qg6 {[%clk 0:02:58]} 15. Qb3 {[%clk 0:02:33]}  Rab8 {[%clk 0:02:53]} 16. Rae1 {[%clk 0:02:04]}  Kh8 {[%clk 0:02:51]} 17. Kh2 {[%clk 0:01:37]}  Qf7 {[%clk 0:02:43]} 18. d4 {[%clk 0:01:34]}  exd4 {[%clk 0:02:42]} 19. Nexd4 {[%clk 0:01:28]}  Nxd4 {[%clk 0:02:31]} 20. cxd4 {[%clk 0:01:21]}  c6 {[%clk 0:01:56]} 21. Qc3 {[%clk 0:01:16]}  Ra8 {[%clk 0:01:46]} 22. Re3 {[%clk 0:01:11]}  Qg6 {[%clk 0:01:43]} 23. Qb3 {[%clk 0:01:09]}  Rab8 {[%clk 0:01:39]} 24. Rfe1 {[%clk 0:00:57]}  b5 {[%clk 0:01:31]} 25. axb5 {[%clk 0:00:51]}  Rxb5 {[%clk 0:01:30]} 26. Qc3 {[%clk 0:00:50]}  Nxg3 {[%clk 0:01:25]} 27. fxg3 {[%clk 0:00:50]}  c5 {[%clk 0:01:18]} 28. dxc5 {[%clk 0:00:32]}  Rxc5 {[%clk 0:01:18]} 29. Qd2 {[%clk 0:00:33]}  e5 {[%clk 0:01:08]} 30. Ra3 {[%clk 0:00:30]}  Rb8 {[%clk 0:00:59]} 31. Re2 {[%clk 0:00:28]}  Rc4 {[%clk 0:00:50]} 32. Qd3 {[%clk 0:00:19]}  Rc5 {[%clk 0:00:41]} 33. Rc3 {[%clk 0:00:20]}  Rcb5 {[%clk 0:00:39]} 34. Rc7 {[%clk 0:00:16]}  Bf8 {[%clk 0:00:39]} 35. Rcc2 {[%clk 0:00:15]}  Qe6 {[%clk 0:00:37]} 36. Nh4 {[%clk 0:00:15]}  Rb3 {[%clk 0:00:28]} 37. Qd1 {[%clk 0:00:15]}  g6 {[%clk 0:00:27]} 38. Rf2 {[%clk 0:00:14]}  Be7 {[%clk 0:00:26]} 39. Nf3 {[%clk 0:00:14]}  a4 {[%clk 0:00:21]} 40. Rfd2 {[%clk 0:00:13]}  R3b4 {[%clk 0:00:21]} 41. Rf2 {[%clk 0:00:12]}  Rxe4 {[%clk 0:00:21]} 42. Rc7 {[%clk 0:00:12]}  Reb4 {[%clk 0:00:20]} 43. Rfc2 {[%clk 0:00:11]}  Rxb2 {[%clk 0:00:18]} 44. Rxb2 {[%clk 0:00:11]}  Rxb2 {[%clk 0:00:18]} 45. Qxa4 {[%clk 0:00:12]}  Rb8 {[%clk 0:00:17]} 46. Qa7 {[%clk 0:00:12]}  Re8 {[%clk 0:00:17]} 47. Qe3 {[%clk 0:00:12]}  Kg7 {[%clk 0:00:16]} 48. Nd4 {[%clk 0:00:11]}  Qf6 {[%clk 0:00:15]} 49. Nc6 {[%clk 0:00:11]}  g5 {[%clk 0:00:14]} 50. Qe4 {[%clk 0:00:11]}  h5 {[%clk 0:00:11]} 51. Rd7 {[%clk 0:00:09]}  h4 {[%clk 0:00:11]} 52. gxh4 {[%clk 0:00:09]}  gxh4 {[%clk 0:00:11]} 53. Qg4+ {[%clk 0:00:10]}  Kh6 {[%clk 0:00:12]} 54. Qe4 {[%clk 0:00:05]}  Qg5 {[%clk 0:00:10]} 55. Qf3 {[%clk 0:00:05]}  Rf8 {[%clk 0:00:06]} 56. Qe2 {[%clk 0:00:04]}  Qf4+ {[%clk 0:00:07]} 57. Kg1 {[%clk 0:00:04]}  Qc1+ {[%clk 0:00:06]} 58. Kh2 {[%clk 0:00:05]}  Qxc6 {[%clk 0:00:07]} 59. Rxe7 {[%clk 0:00:06]}  Qc1 {[%clk 0:00:07]} 60. Re6+ {[%clk 0:00:05]}  Kg7 {[%clk 0:00:03]} 61. Qg4+ {[%clk 0:00:05]}  Kf7 {[%clk 0:00:03]} 62. Qg6# {[%clk 0:00:05]} 1-0


[Site "https://www.chess.com"]

[Event "Titled Tuesday Blitz May 31 Early 2022"]
[White "Durarbayli, Vasif"]
[Black "Nakamura, Hikaru"]
[WhiteFideId "13402935"]
[BlackFideId "2016192"]
[WhiteElo "2528"]
[BlackElo "2850"]
[Result "1-0"]
[Round "10"]
[TimeControl "180+1"]
[Date "2022.05.31"]
[WhiteClock "0:00:08"]
[BlackClock "0:00:03"]

1. e4 {[%clk 0:03:00]}  c5 {[%clk 0:02:59]} 2. Nf3 {[%clk 0:03:00]}  e6 {[%clk 0:02:58]} 3. d4 {[%clk 0:02:58]}  cxd4 {[%clk 0:02:59]} 4. Nxd4 {[%clk 0:02:59]}  Nf6 {[%clk 0:02:55]} 5. Nc3 {[%clk 0:02:58]}  d6 {[%clk 0:02:56]} 6. g4 {[%clk 0:02:58]}  a6 {[%clk 0:02:56]} 7. g5 {[%clk 0:02:58]}  Nfd7 {[%clk 0:02:56]} 8. h4 {[%clk 0:02:58]}  b5 {[%clk 0:02:56]} 9. a3 {[%clk 0:02:57]}  Bb7 {[%clk 0:02:55]} 10. Rg1 {[%clk 0:02:55]}  Nb6 {[%clk 0:02:51]} 11. h5 {[%clk 0:02:54]}  g6 {[%clk 0:02:51]} 12. Be3 {[%clk 0:02:31]}  N8d7 {[%clk 0:02:50]} 13. Qg4 {[%clk 0:02:25]}  Be7 {[%clk 0:02:45]} 14. Qh3 {[%clk 0:02:20]}  Rf8 {[%clk 0:02:34]} 15. O-O-O {[%clk 0:02:14]}  Qc7 {[%clk 0:02:30]} 16. f4 {[%clk 0:02:08]}  e5 {[%clk 0:02:29]} 17. Nb3 {[%clk 0:01:46]}  Rc8 {[%clk 0:02:15]} 18. Rg2 {[%clk 0:00:57]}  Na4 {[%clk 0:01:26]} 19. Nd5 {[%clk 0:00:56]}  Bxd5 {[%clk 0:01:26]} 20. exd5 {[%clk 0:00:46]}  exf4 {[%clk 0:00:51]} 21. Bxf4 {[%clk 0:00:45]}  Nab6 {[%clk 0:00:38]} 22. Re2 {[%clk 0:00:41]}  Ne5 {[%clk 0:00:38]} 23. Na5 {[%clk 0:00:32]}  f6 {[%clk 0:00:20]} 24. hxg6 {[%clk 0:00:29]}  hxg6 {[%clk 0:00:18]} 25. gxf6 {[%clk 0:00:22]}  Bxf6 {[%clk 0:00:19]} 26. Nc6 {[%clk 0:00:17]}  Qd7 {[%clk 0:00:16]} 27. Nxe5 {[%clk 0:00:09]}  dxe5 {[%clk 0:00:15]} 28. Bxe5 {[%clk 0:00:10]}  Kd8 {[%clk 0:00:01]} 29. Bxf6+ {[%clk 0:00:08]}  Rxf6 {[%clk 0:00:01]} 30. Qh4 {[%clk 0:00:09]}  Qd6 {[%clk 0:00:01]} 31. Re6 {[%clk 0:00:07]}  Qf4+ {[%clk 0:00:01]} 32. Qxf4 {[%clk 0:00:08]}  Rxf4 {[%clk 0:00:02]} 33. Rxb6 {[%clk 0:00:08]}  Rf2 {[%clk 0:00:03]} 34. Bd3 {[%clk 0:00:08]}  g5 {[%clk 0:00:03]} 35. Rd6+ {[%clk 0:00:08]}  Ke7 {[%clk 0:00:03]} 36. Rxa6 {[%clk 0:00:09]}  Kd7 {[%clk 0:00:04]} 37. Re6 {[%clk 0:00:10]}  Rc5 {[%clk 0:00:04]} 38. Rg6 {[%clk 0:00:10]}  Rg2 {[%clk 0:00:04]} 39. Kb1 {[%clk 0:00:09]}  Rxd5 {[%clk 0:00:03]} 40. Bxb5+ {[%clk 0:00:08]} 1-0


[Site "https://www.chess.com"]

[Event "Titled Tuesday Blitz May 31 Early 2022"]
[White "Hambleton, Aman"]
[Black "Xu, Yi"]
[WhiteFideId "2606577"]
[BlackFideId "8605564"]
[WhiteElo "2552"]
[BlackElo "2471"]
[Result "0-1"]
[Round "10"]
[TimeControl "180+1"]
[Date "2022.05.31"]
[WhiteClock "0:00:01"]
[BlackClock "0:00:25"]

1. d4 {[%clk 0:03:00]}  Nf6 {[%clk 0:02:58]} 2. c4 {[%clk 0:02:58]}  e6 {[%clk 0:02:57]} 3. Nc3 {[%clk 0:02:58]}  Bb4 {[%clk 0:02:56]} 4. Qc2 {[%clk 0:02:58]}  O-O {[%clk 0:02:54]} 5. Nf3 {[%clk 0:02:55]}  c5 {[%clk 0:02:43]} 6. dxc5 {[%clk 0:02:56]}  Na6 {[%clk 0:02:41]} 7. g3 {[%clk 0:02:56]}  Nxc5 {[%clk 0:02:40]} 8. Bg2 {[%clk 0:02:57]}  Nce4 {[%clk 0:02:30]} 9. O-O {[%clk 0:02:57]}  Nxc3 {[%clk 0:02:29]} 10. bxc3 {[%clk 0:02:57]}  Be7 {[%clk 0:02:29]} 11. e4 {[%clk 0:02:57]}  d6 {[%clk 0:02:27]} 12. e5 {[%clk 0:02:55]}  dxe5 {[%clk 0:02:19]} 13. Nxe5 {[%clk 0:02:56]}  Qc7 {[%clk 0:02:18]} 14. Re1 {[%clk 0:02:52]}  Bd6 {[%clk 0:02:09]} 15. Qe2 {[%clk 0:02:43]}  Bxe5 {[%clk 0:02:09]} 16. Qxe5 {[%clk 0:02:44]}  Qxe5 {[%clk 0:02:09]} 17. Rxe5 {[%clk 0:02:45]}  Rd8 {[%clk 0:01:56]} 18. Bf4 {[%clk 0:02:13]}  h6 {[%clk 0:01:54]} 19. Rb5 {[%clk 0:02:07]}  g5 {[%clk 0:01:47]} 20. Be5 {[%clk 0:01:26]}  Ng4 {[%clk 0:01:44]} 21. Bd4 {[%clk 0:01:25]}  e5 {[%clk 0:01:41]} 22. Bxe5 {[%clk 0:01:10]}  Nxe5 {[%clk 0:01:31]} 23. Rxe5 {[%clk 0:01:11]}  Rb8 {[%clk 0:01:25]} 24. Ra5 {[%clk 0:00:47]}  a6 {[%clk 0:01:22]} 25. Bd5 {[%clk 0:00:32]}  b6 {[%clk 0:01:10]} 26. Ra3 {[%clk 0:00:20]}  b5 {[%clk 0:00:55]} 27. Re1 {[%clk 0:00:14]}  Kf8 {[%clk 0:00:47]} 28. h4 {[%clk 0:00:06]}  gxh4 {[%clk 0:00:44]} 29. gxh4 {[%clk 0:00:07]}  bxc4 {[%clk 0:00:44]} 30. Bxc4 {[%clk 0:00:06]}  Rb6 {[%clk 0:00:45]} 31. Re4 {[%clk 0:00:02]}  Rg6+ {[%clk 0:00:44]} 32. Kf1 {[%clk 0:00:02]}  Rd2 {[%clk 0:00:37]} 33. Rf4 {[%clk 0:00:02]}  Bh3+ {[%clk 0:00:25]} 34. Ke1 {[%clk 0:00:02]}  Rb2 {[%clk 0:00:25]} 35. Bxf7 {[%clk 0:00:01]}  Rg1# {[%clk 0:00:25]} 0-1


[Site "https://www.chess.com"]

[Event "Titled Tuesday Blitz May 31 Early 2022"]
[White "Harvey, Marcus R"]
[Black "Boder, Jan"]
[WhiteFideId "400092"]
[BlackFideId "16243226"]
[WhiteElo "2485"]
[BlackElo "2064"]
[Result "1/2-1/2"]
[Round "10"]
[TimeControl "180+1"]
[Date "2022.05.31"]
[WhiteClock "0:00:04"]
[BlackClock "0:00:03"]

1. e4 {[%clk 0:02:59]}  c5 {[%clk 0:03:00]} 2. Nf3 {[%clk 0:02:58]}  g6 {[%clk 0:03:00]} 3. d4 {[%clk 0:02:58]}  cxd4 {[%clk 0:03:01]} 4. Nxd4 {[%clk 0:02:57]}  Nc6 {[%clk 0:03:01]} 5. c4 {[%clk 0:02:57]}  Nf6 {[%clk 0:03:00]} 6. Nc3 {[%clk 0:02:57]}  d6 {[%clk 0:03:00]} 7. Be2 {[%clk 0:02:57]}  Nxd4 {[%clk 0:03:00]} 8. Qxd4 {[%clk 0:02:58]}  Bg7 {[%clk 0:03:01]} 9. Be3 {[%clk 0:02:52]}  O-O {[%clk 0:03:01]} 10. Qd2 {[%clk 0:02:53]}  Be6 {[%clk 0:03:01]} 11. f3 {[%clk 0:02:52]}  Qa5 {[%clk 0:03:02]} 12. Kf2 {[%clk 0:02:48]}  Rfc8 {[%clk 0:03:02]} 13. Nd5 {[%clk 0:02:27]}  Qxd2 {[%clk 0:02:47]} 14. Bxd2 {[%clk 0:02:28]}  Nxd5 {[%clk 0:02:34]} 15. exd5 {[%clk 0:02:25]}  Bd7 {[%clk 0:02:35]} 16. Rab1 {[%clk 0:02:22]}  b5 {[%clk 0:02:32]} 17. b3 {[%clk 0:02:22]}  a5 {[%clk 0:02:26]} 18. cxb5 {[%clk 0:02:04]}  Rc5 {[%clk 0:02:24]} 19. Bc4 {[%clk 0:01:58]}  Bd4+ {[%clk 0:02:14]} 20. Be3 {[%clk 0:01:46]}  Bxe3+ {[%clk 0:02:13]} 21. Kxe3 {[%clk 0:01:47]}  Bxb5 {[%clk 0:02:13]} 22. Kd4 {[%clk 0:01:47]}  a4 {[%clk 0:02:04]} 23. Rhc1 {[%clk 0:01:46]}  Bxc4 {[%clk 0:01:56]} 24. bxc4 {[%clk 0:01:46]}  a3 {[%clk 0:01:47]} 25. Rb4 {[%clk 0:01:42]}  Kg7 {[%clk 0:01:43]} 26. Rc3 {[%clk 0:01:42]}  Kf6 {[%clk 0:01:41]} 27. f4 {[%clk 0:01:28]}  h6 {[%clk 0:01:39]} 28. g3 {[%clk 0:01:21]}  h5 {[%clk 0:01:37]} 29. Re3 {[%clk 0:01:13]}  Ra7 {[%clk 0:01:35]} 30. Kc3 {[%clk 0:01:12]}  Kf5 {[%clk 0:01:16]} 31. Kb3 {[%clk 0:01:08]}  Rca5 {[%clk 0:01:02]} 32. Rb5 {[%clk 0:01:08]}  Ra4 {[%clk 0:00:47]} 33. Rxe7 {[%clk 0:01:01]}  Rxe7 {[%clk 0:00:43]} 34. Kxa4 {[%clk 0:01:01]}  Re2 {[%clk 0:00:43]} 35. Kxa3 {[%clk 0:01:02]}  Rxh2 {[%clk 0:00:43]} 36. Rb3 {[%clk 0:01:02]}  Rc2 {[%clk 0:00:40]} 37. Kb4 {[%clk 0:00:53]}  Rxa2 {[%clk 0:00:39]} 38. Re3 {[%clk 0:00:47]}  Rb2+ {[%clk 0:00:33]} 39. Ka5 {[%clk 0:00:43]}  Kg4 {[%clk 0:00:31]} 40. Rd3 {[%clk 0:00:36]}  f6 {[%clk 0:00:17]} 41. c5 {[%clk 0:00:34]}  dxc5 {[%clk 0:00:18]} 42. d6 {[%clk 0:00:35]}  Rb8 {[%clk 0:00:18]} 43. d7 {[%clk 0:00:35]}  Rd8 {[%clk 0:00:19]} 44. Kb6 {[%clk 0:00:35]}  c4 {[%clk 0:00:19]} 45. Rd6 {[%clk 0:00:15]}  Kxg3 {[%clk 0:00:18]} 46. Kc7 {[%clk 0:00:14]}  Rxd7+ {[%clk 0:00:16]} 47. Kxd7 {[%clk 0:00:14]}  Kxf4 {[%clk 0:00:16]} 48. Rxf6+ {[%clk 0:00:14]}  Kg5 {[%clk 0:00:16]} 49. Ke6 {[%clk 0:00:13]}  h4 {[%clk 0:00:16]} 50. Ke5 {[%clk 0:00:14]}  h3 {[%clk 0:00:13]} 51. Rf2 {[%clk 0:00:04]}  Kg4 {[%clk 0:00:11]} 52. Ke4 {[%clk 0:00:05]}  g5 {[%clk 0:00:09]} 53. Rc2 {[%clk 0:00:05]}  Kg3 {[%clk 0:00:03]} 54. Rc3+ {[%clk 0:00:05]}  Kg2 {[%clk 0:00:01]} 55. Rc2+ {[%clk 0:00:05]}  Kg3 {[%clk 0:00:01]} 56. Rc3+ {[%clk 0:00:05]}  Kg2 {[%clk 0:00:01]} 57. Kf5 {[%clk 0:00:04]}  h2 {[%clk 0:00:01]} 58. Rc2+ {[%clk 0:00:03]}  Kg1 {[%clk 0:00:01]} 59. Rc1+ {[%clk 0:00:04]}  Kg2 {[%clk 0:00:02]} 60. Rc2+ {[%clk 0:00:04]}  Kg3 {[%clk 0:00:02]} 61. Rc3+ {[%clk 0:00:04]}  Kg2 {[%clk 0:00:03]} 62. Rc2+ {[%clk 0:00:04]} 1/2-1/2


[Site "https://www.chess.com"]